[Event "3rd FIDE WCCC Rapid G10 2019"]
[Site "Minsk"]
[Date "2019.08.17"]
[Round "6.4"]
[White "Toroptseva, Yevheniia"]
[Black "Efimova, Darya"]
[Result "1-0"]
[ECO "B22"]
[WhiteElo "1496"]
[BlackElo "1385"]
[Annotator "NA"]
[PlyCount "151"]
[EventDate "2019.08.16"]
[EventType "swiss"]
[EventCountry "BLR"]
[SourceTitle "playchess.com"]
[Source "ChessBase"]
[SourceQuality "1"]
[TimeControl "600+5"]

1. e4 {[%emt 0:00:00]} c5 {[%emt 0:00:00]} 2. c3 {[%emt 0:00:00]} d6 {[%emt 0:00:00]} 3. d4 {[%emt 0:00:00]} Nf6 {[%emt 0:00:01]} 4. f3 {[%emt 0:00:16]} g6 {[%emt 0:00:07]} 5. dxc5 {[%emt 0:00:30]} dxc5 {[%emt 0:00:33]} 6. Qxd8+ {[%emt 0:00:02]} Kxd8 {[%emt 0:00:01]} 7. Bc4 {[%emt 0:00:03]} Ke8 {[%emt 0:00:01]} 8. Be3 {[%emt 0:00:08]} e5 {[%emt 0:00:09]} 9. Ke2 {[%emt 0:00:49]} Nbd7 {[%emt 0:00:04]} 10. Na3 {[%emt 0:00:18]} a6 {[%emt 0:00:01]} 11. Rd1 {[%emt 0:00:14]} Be7 {[%emt 0:00:13]} 12. Nh3 {[%emt 0:00:37]} Kf8 {[%emt 0:00:04]} 13. Bh6+ {[%emt 0:00:32]} Ke8 {[%emt 0:00:17]} 14. Ng5 {[%emt 0:00:06]} Rf8 {[%emt 0:00:28]} 15. Bxf8 {[%emt 0:00:08]} Kxf8 {[%emt 0:00:02]} 16. Nxf7 {[%emt 0:00:09]} b5 {[%emt 0:00:03]} 17. Be6 {[%emt 0:00:12]} c4 {[%emt 0:00:19]} 18. Ng5 {[%emt 0:00:31]} Nc5 {[%emt 0:00:06]} 19. Bxc8 {[%emt 0:00:06]} Rxc8 {[%emt 0:00:01]} 20. Nh3 {[%emt 0:00:36]} Nd3 {[%emt 0:00:12]} 21. Rd2 {[%emt 0:00:31]} Rd8 {[%emt 0:00:43]} 22. Rhd1 {[%emt 0:00:36]} Kf7 {[%emt 0:00:52]} 23. Ng5+ {[%emt 0:00:55]} Kg8 {[%emt 0:00:13]} 24. Nh3 {[%emt 0:00:11]} Bc5 {[%emt 0:00:01]} 25. g3 {[%emt 0:00:20]} h6 {[%emt 0:00:33]} 26. b4 {[%emt 0:01:03]} Bb6 {[%emt 0:00:18]} 27. Rxd3 {[%emt 0:00:12]} cxd3+ {[%emt 0:00:12]} 28. Rxd3 {[%emt 0:00:02]} Rxd3 {[%emt 0:00:07]} 29. Kxd3 {[%emt 0:00:01]} Kf7 {[%emt 0:00:01]} 30. c4 {[%emt 0:00:12]} bxc4+ {[%emt 0:00:26]} 31. Nxc4 {[%emt 0:00:02]} Bc7 {[%emt 0:00:11]} 32. a4 {[%emt 0:00:02]} Ke6 {[%emt 0:00:02]} 33. b5 {[%emt 0:00:14]} axb5 {[%emt 0:00:04]} 34. axb5 {[%emt 0:00:01]} Nd7 {[%emt 0:00:01]} 35. f4 {[%emt 0:00:14]} Nc5+ {[%emt 0:01:16]} 36. Ke3 {[%emt 0:00:04]} Nd7 {[%emt 0:00:53]} 37. fxe5 {[%emt 0:00:34]} Nxe5 {[%emt 0:00:06]} 38. Nxe5 {[%emt 0:00:02]} Kxe5 {[%emt 0:00:16]} 39. Nf4 {[%emt 0:00:01]} Bb6+ {[%emt 0:00:00]} 40. Kd3 {[%emt 0:00:03]} g5 {[%emt 0:00:16]} 41. Nd5 {[%emt 0:00:05]} Ba7 {[%emt 0:00:07]} 42. Nb4 {[%emt 0:00:15]} Bb6 {[%emt 0:00:14]} 43. Nc6+ {[%emt 0:00:26]} Kd6 {[%emt 0:00:04]} 44. e5+ {[%emt 0:00:03]} Kd5 {[%emt 0:00:20]} 45. Kc3 {[%emt 0:00:18]} Bc5 {[%emt 0:00:09]} 46. Nb4+ {[%emt 0:00:12]} Ke6 {[%emt 0:00:59]} 47. Nd3 {[%emt 0:00:01]} Bb6 {[%emt 0:00:01]} 48. Kc4 {[%emt 0:00:01]} h5 {[%emt 0:00:11]} 49. Nc5+ {[%emt 0:00:18]} Ke7 {[%emt 0:00:39]} 50. Kd5 {[%emt 0:00:12]} h4 {[%emt 0:00:12]} 51. g4 {[%emt 0:00:36]} h3 {[%emt 0:00:05]} 52. Ne4 {[%emt 0:00:04]} Be3 {[%emt 0:00:17]} 53. e6 {[%emt 0:00:13]} Kd8 {[%emt 0:00:09]} 54. Kc6 {[%emt 0:00:08]} Ke7 {[%emt 0:00:13]} 55. b6 {[%emt 0:00:20]} Kxe6 {[%emt 0:00:04]} 56. b7 {[%emt 0:00:04]} Bf4 {[%emt 0:00:05]} 57. Nxg5+ {[%emt 0:00:03]} Kf6 {[%emt 0:00:10]} 58. Nxh3 {[%emt 0:00:02]} Bxh2 {[%emt 0:00:02]} 59. g5+ {[%emt 0:00:06]} Kg6 {[%emt 0:00:02]} 60. Kd7 {[%emt 0:00:07]} Kh5 {[%emt 0:00:08]} 61. Ke6 {[%emt 0:00:10]} Kg6 {[%emt 0:00:01]} 62. Kd5 {[%emt 0:00:04]} Kf5 {[%emt 0:00:04]} 63. Kc6 {[%emt 0:00:02]} Ke6 {[%emt 0:00:08]} 64. Nf2 {[%emt 0:00:16]} Kf5 {[%emt 0:00:20]} 65. Ne4 {[%emt 0:00:03]} Ke6 {[%emt 0:00:30]} 66. g6 {[%emt 0:00:02]} Be5 {[%emt 0:00:11]} 67. Nc5+ Kf5 {[%emt 0:00:22]} 68. g7 {[%emt 0:00:20]} Bxg7 {[%emt 0:00:03]} 69. b8=Q {[%emt 0:00:01]} Be5 {[%emt 0:00:01]} 70. Qf8+ {[%emt 0:00:03]} Kg4 {[%emt 0:00:03]} 71. Nd3 {[%emt 0:00:03]} Bg3 {[%emt 0:00:03]} 72. Qg7+ {[%emt 0:00:03]} Kh3 {[%emt 0:00:01]} 73. Qg6 {[%emt 0:00:03]} Kh2 {[%emt 0:00:01]} 74. Kd5 {[%emt 0:00:02]} Kh1 {[%emt 0:00:03]} 75. Ke4 {[%emt 0:00:02]} Bh2 {[%emt 0:00:01]} 76. Nf2# {[%emt 0:00:06]} 1-0

[Event "3rd FIDE WCCC Rapid G10 2019"]
[Site "Minsk"]
[Date "2019.08.17"]
[Round "6.5"]
[White "Zubkovskaya, Ekaterina"]
[Black "Khamdamova, Afruza"]
[Result "0-1"]
[ECO "C89"]
[WhiteElo "1449"]
[BlackElo "1607"]
[Annotator "NA"]
[PlyCount "61"]
[EventDate "2019.08.16"]
[EventType "swiss"]
[EventCountry "BLR"]
[SourceTitle "playchess.com"]
[Source "ChessBase"]
[SourceQuality "1"]
[TimeControl "600+5"]

1. e4 {[%emt 0:00:00]} e5 {[%emt 0:00:00]} 2. Nf3 {[%emt 0:00:00]} Nc6 {[%emt 0:00:00]} 3. Bb5 {[%emt 0:00:00]} a6 {[%emt 0:00:00]} 4. Ba4 {[%emt 0:00:00]} Nf6 {[%emt 0:00:00]} 5. O-O {[%emt 0:00:03]} Be7 {[%emt 0:00:05]} 6. Re1 {[%emt 0:00:02]} b5 {[%emt 0:00:02]} 7. Bb3 {[%emt 0:00:01]} O-O {[%emt 0:00:04]} 8. c3 {[%emt 0:00:01]} d5 {[%emt 0:00:29]} 9. exd5 {[%emt 0:00:11]} Nxd5 {[%emt 0:00:02]} 10. Nxe5 {[%emt 0:00:55]} Nxe5 {[%emt 0:00:01]} 11. Rxe5 {[%emt 0:00:01]} c6 {[%emt 0:00:01]} 12. d4 {[%emt 0:00:25]} Bd6 {[%emt 0:00:01]} 13. Re1 {[%emt 0:00:07]} Qh4 {[%emt 0:00:02]} 14. g3 {[%emt 0:00:28]} Qh3 {[%emt 0:00:01]} 15. Bxd5 {[%emt 0:00:27]} cxd5 {[%emt 0:00:02]} 16. Qf3 {[%emt 0:00:05]} Bg4 {[%emt 0:00:09]} 17. Qg2 {[%emt 0:00:17]} Qh5 {[%emt 0:00:06]} 18. h4 {[%emt 0:00:19]} Rae8 {[%emt 0:00:06]} 19. Be3 {[%emt 0:00:24]} Bf3 {[%emt 0:01:17]} 20. Qh3 {[%emt 0:01:04]} Bg4 {[%emt 0:01:34]} 21. Qg2 {[%emt 0:00:10]} Re6 {[%emt 0:00:09]} 22. Nd2 {[%emt 0:00:24]} Rg6 {[%emt 0:00:09]} 23. Nf1 {[%emt 0:02:21]} Bf3 {[%emt 0:00:10]} 24. Qh3 {[%emt 0:00:13]} f5 {[%emt 0:00:15]} 25. Kh2 {[%emt 0:01:20]} Rg4 {[%emt 0:00:28]} 26. Kg1 {[%emt 0:00:10]} f4 {[%emt 0:00:26]} 27. Bd2 {[%emt 0:00:30]} fxg3 {[%emt 0:00:45]} 28. fxg3 {[%emt 0:00:05]} Be4 {[%emt 0:00:26]} 29. Re2 {[%emt 0:00:56]} Rf3 {[%emt 0:00:43]} 30. Rg2 {[%emt 0:00:53]} Rxf1+ {[%emt 0:01:00]} 31. Rxf1 {time} 0-1

[Event "3rd FIDE WCCC Rapid G10 2019"]
[Site "Minsk"]
[Date "2019.08.17"]
[Round "6.6"]
[White "Mutina, Sofia"]
[Black "Liashkevich, Lizaveta"]
[Result "1/2-1/2"]
[ECO "A01"]
[WhiteElo "1421"]
[BlackElo "1370"]
[Annotator "NA"]
[PlyCount "144"]
[EventDate "2019.08.16"]
[EventType "swiss"]
[EventCountry "BLR"]
[SourceTitle "playchess.com"]
[Source "ChessBase"]
[SourceQuality "1"]
[TimeControl "600+5"]

1. b3 {[%emt 0:00:00]} e5 {[%emt 0:00:00]} 2. e3 {[%emt 0:00:00]} d5 {[%emt 0:00:03]} 3. Bb2 {[%emt 0:00:00]} Bd6 {[%emt 0:00:18]} 4. f4 {[%emt 0:00:00]} f6 {[%emt 0:00:32]} 5. fxe5 {[%emt 0:00:02]} Bxe5 {[%emt 0:00:32]} 6. Bxe5 {[%emt 0:00:01]} fxe5 {[%emt 0:00:05]} 7. Qh5+ {[%emt 0:00:01]} Kf8 {[%emt 0:00:20]} 8. Qxe5 {[%emt 0:00:04]} Nf6 {[%emt 0:00:05]} 9. Be2 {[%emt 0:00:18]} Nc6 {[%emt 0:00:21]} 10. Qf4 {[%emt 0:00:02]} Ke7 {[%emt 0:00:26]} 11. Nf3 {[%emt 0:00:26]} Rf8 {[%emt 0:00:30]} 12. O-O {[%emt 0:00:11]} Kf7 {[%emt 0:00:26]} 13. Qh4 {[%emt 0:00:28]} Kg8 {[%emt 0:00:09]} 14. Nc3 {[%emt 0:00:32]} Bd7 {[%emt 0:01:27]} 15. Bd3 {[%emt 0:00:20]} Be8 {[%emt 0:01:16]} 16. Ng5 {[%emt 0:00:06]} h6 {[%emt 0:01:03]} 17. Ne6 {[%emt 0:00:04]} Qd6 {[%emt 0:00:35]} 18. Nxf8 {[%emt 0:00:04]} Kxf8 {[%emt 0:00:08]} 19. Rxf6+ {[%emt 0:00:18]} gxf6 {[%emt 0:00:27]} 20. Qxh6+ {[%emt 0:00:02]} Ke7 {[%emt 0:00:09]} 21. Rf1 {[%emt 0:00:04]} Bf7 {[%emt 0:00:35]} 22. Nb5 {[%emt 0:00:04]} Qe5 {[%emt 0:00:13]} 23. Bf5 {[%emt 0:00:47]} d4 {[%emt 0:00:40]} 24. Nxd4 {[%emt 0:01:08]} Nxd4 {[%emt 0:00:05]} 25. exd4 {[%emt 0:00:03]} Qxd4+ {[%emt 0:00:04]} 26. Kh1 {[%emt 0:00:04]} Re8 {[%emt 0:00:27]} 27. Qe3+ {[%emt 0:00:30]} Qxe3 {[%emt 0:00:02]} 28. dxe3 {[%emt 0:00:01]} Kd6 {[%emt 0:00:18]} 29. Rd1+ {[%emt 0:00:03]} Ke5 {[%emt 0:00:13]} 30. e4 {[%emt 0:00:11]} Be6 {[%emt 0:00:06]} 31. Bxe6 {[%emt 0:00:04]} Kxe6 {[%emt 0:00:04]} 32. Kg1 {[%emt 0:00:05]} Re7 {[%emt 0:00:10]} 33. Kf2 {[%emt 0:00:05]} Kf7 {[%emt 0:00:04]} 34. Kf3 {[%emt 0:00:04]} Ke8 {[%emt 0:00:07]} 35. Kf4 {[%emt 0:00:04]} Re5 {[%emt 0:00:03]} 36. Rd5 {[%emt 0:00:04]} Re6 {[%emt 0:00:03]} 37. e5 {[%emt 0:00:18]} Rc6 {[%emt 0:00:05]} 38. c4 {[%emt 0:00:02]} Ra6 {[%emt 0:00:07]} 39. a4 {[%emt 0:00:01]} Rb6 {[%emt 0:00:03]} 40. Rb5 {[%emt 0:00:06]} fxe5+ {[%emt 0:00:13]} 41. Rxe5+ {[%emt 0:00:04]} Kd7 {[%emt 0:00:03]} 42. Re3 {[%emt 0:00:06]} c6 {[%emt 0:00:07]} 43. c5 {[%emt 0:00:12]} Rb4+ {[%emt 0:00:03]} 44. Kf3 {[%emt 0:00:04]} Rh4 {[%emt 0:00:04]} 45. Kg3 {[%emt 0:00:04]} Rh5 {[%emt 0:00:02]} 46. Rc3 {[%emt 0:00:02]} Rd5 {[%emt 0:00:03]} 47. h4 {[%emt 0:00:03]} Ke6 {[%emt 0:00:01]} 48. Kh3 {[%emt 0:00:03]} Kf5 {[%emt 0:00:06]} 49. g4+ {[%emt 0:00:04]} Kg6 {[%emt 0:00:09]} 50. Kg3 {[%emt 0:00:09]} a5 {[%emt 0:00:08]} 51. Kf3 {[%emt 0:00:19]} Rd4 {[%emt 0:00:10]} 52. Kg3 {[%emt 0:00:27]} Rd5 {[%emt 0:00:02]} 53. Kf3 {[%emt 0:01:08]} Rd4 {[%emt 0:00:02]} 54. Kg3 {[%emt 0:00:20]} Rd5 {[%emt 0:00:02]} 55. g5 {[%emt 0:00:17]} Kh5 {[%emt 0:00:12]} 56. Kf4 {[%emt 0:00:33]} Kxh4 {[%emt 0:00:20]} 57. Rc1 {[%emt 0:00:07]} Kh5 {[%emt 0:00:04]} 58. Rc3 {[%emt 0:00:27]} Rxg5 {[%emt 0:00:07]} 59. Rc4 {[%emt 0:00:03]} Rd5 {[%emt 0:00:15]} 60. Re4 {[%emt 0:00:27]} Rxc5 {[%emt 0:00:08]} 61. Re5+ {[%emt 0:00:01]} Rxe5 {[%emt 0:00:02]} 62. Kxe5 {[%emt 0:00:00]} b5 {[%emt 0:00:07]} 63. Kd6 {[%emt 0:00:03]} bxa4 {[%emt 0:00:04]} 64. bxa4 {[%emt 0:00:01]} Kg6 {[%emt 0:00:01]} 65. Kxc6 {[%emt 0:00:00]} Kf6 66. Kb5 {[%emt 0:00:05]} Ke7 {[%emt 0:00:03]} 67. Kxa5 {[%emt 0:00:01]} Kd8 {[%emt 0:00:02]} 68. Kb6 {[%emt 0:00:01]} Kc8 {[%emt 0:00:02]} 69. Ka7 {[%emt 0:00:03]} Kc7 {[%emt 0:00:01]} 70. a5 {[%emt 0:00:01]} Kc8 {[%emt 0:00:03]} 71. Kb6 {[%emt 0:00:15]} Kb8 {[%emt 0:00:03]} 72. a6 {[%emt 0:00:01]} Ka8 {[%emt 0:00:01]} 1/2-1/2

[Event "3rd FIDE WCCC Rapid G10 2019"]
[Site "Minsk"]
[Date "2019.08.17"]
[Round "7.1"]
[White "Khamdamova, Afruza"]
[Black "Nurgaliyeva, Zarina"]
[Result "1-0"]
[ECO "C72"]
[WhiteElo "1607"]
[BlackElo "1474"]
[Annotator "NA"]
[PlyCount "128"]
[EventDate "2019.08.16"]
[EventType "swiss"]
[EventCountry "BLR"]
[SourceTitle "playchess.com"]
[Source "ChessBase"]
[SourceQuality "1"]
[TimeControl "600+5"]

1. e4 {[%emt 0:00:00]} e5 {[%emt 0:00:00]} 2. Nf3 {[%emt 0:00:00]} Nc6 {[%emt 0:00:00]} 3. Bb5 {[%emt 0:00:00]} a6 {[%emt 0:00:00]} 4. Ba4 {[%emt 0:00:00]} d6 {[%emt 0:00:00]} 5. O-O {[%emt 0:00:02]} Bg4 {[%emt 0:00:02]} 6. h3 {[%emt 0:00:07]} h5 {[%emt 0:00:04]} 7. d3 {[%emt 0:00:42]} Qf6 {[%emt 0:00:03]} 8. Nbd2 {[%emt 0:00:05]} Nge7 {[%emt 0:00:02]} 9. c3 {[%emt 0:00:06]} Bd7 {[%emt 0:00:17]} 10. Re1 {[%emt 0:00:16]} Ng6 {[%emt 0:00:28]} 11. Nf1 {[%emt 0:00:06]} Nf4 {[%emt 0:00:05]} 12. Bxf4 {[%emt 0:00:11]} Qxf4 {[%emt 0:00:05]} 13. Ne3 {[%emt 0:00:09]} O-O-O {[%emt 0:00:32]} 14. b4 {[%emt 0:00:18]} Na7 {[%emt 0:00:59]} 15. Bxd7+ {[%emt 0:00:07]} Rxd7 {[%emt 0:00:02]} 16. a4 {[%emt 0:00:00]} b6 {[%emt 0:00:11]} 17. c4 {[%emt 0:00:51]} Qf6 {[%emt 0:00:20]} 18. c5 {[%emt 0:00:47]} dxc5 {[%emt 0:00:04]} 19. Nd5 {[%emt 0:00:07]} Qd8 {[%emt 0:00:17]} 20. Nxe5 {[%emt 0:00:08]} Rxd5 {[%emt 0:00:35]} 21. exd5 {[%emt 0:00:35]} Qxd5 {[%emt 0:00:03]} 22. bxc5 {[%emt 0:00:37]} Bxc5 {[%emt 0:00:04]} 23. Qf3 {[%emt 0:00:06]} Qxf3 {[%emt 0:00:14]} 24. Nxf3 {[%emt 0:00:01]} Rd8 {[%emt 0:00:04]} 25. Rad1 {[%emt 0:00:02]} Nc6 {[%emt 0:00:06]} 26. Ne5 {[%emt 0:00:22]} Nxe5 {[%emt 0:00:10]} 27. Rxe5 {[%emt 0:00:01]} Rd4 {[%emt 0:00:22]} 28. a5 {[%emt 0:00:28]} g6 {[%emt 0:00:14]} 29. axb6 {[%emt 0:00:16]} cxb6 {[%emt 0:00:02]} 30. Re4 {[%emt 0:00:53]} a5 {[%emt 0:00:30]} 31. Kf1 {[%emt 0:00:20]} a4 {[%emt 0:00:13]} 32. Re8+ {[%emt 0:00:25]} Kb7 {[%emt 0:00:08]} 33. Ke2 {[%emt 0:00:42]} a3 {[%emt 0:00:05]} 34. Re4 {[%emt 0:00:24]} b5 {[%emt 0:00:09]} 35. Rb1 {[%emt 0:00:22]} Kb6 {[%emt 0:01:13]} 36. Re8 {[%emt 0:01:51]} b4 {[%emt 0:00:16]} 37. Kd2 {[%emt 0:00:10]} Rd7 {[%emt 0:02:37]} 38. Kc2 {[%emt 0:00:22]} a2 {[%emt 0:01:39]} 39. Ra1 {[%emt 0:00:09]} Ra7 {[%emt 0:00:02]} 40. Re4 {[%emt 0:00:02]} Ra3 {[%emt 0:00:43]} 41. Kb2 {[%emt 0:00:05]} b3 {[%emt 0:00:12]} 42. Rc4 Be7 {[%emt 0:00:12]} 43. d4 {[%emt 0:00:36]} Kb5 {[%emt 0:00:00]} 44. Rc7 {[%emt 0:00:06]} Bd6 {[%emt 0:00:02]} 45. Rxf7 {[%emt 0:00:09]} Kc4 {[%emt 0:00:02]} 46. Rd7 {[%emt 0:00:06]} Bf8 {[%emt 0:00:05]} 47. Rc1+ {[%emt 0:00:03]} Kb5 {[%emt 0:00:03]} 48. Rb7+ {[%emt 0:00:02]} Ka6 {[%emt 0:00:02]} 49. Rxb3 {[%emt 0:00:04]} Rxb3+ {[%emt 0:00:08]} 50. Kxb3 {[%emt 0:00:00]} Bg7 {[%emt 0:00:01]} 51. Kxa2 {[%emt 0:00:02]} Bxd4 {[%emt 0:00:02]} 52. Rc6+ {[%emt 0:00:01]} Kb5 {[%emt 0:00:01]} 53. Rxg6 {[%emt 0:00:02]} Bxf2 {[%emt 0:00:01]} 54. Rg5+ {[%emt 0:00:00]} Kc4 {[%emt 0:00:01]} 55. Rxh5 {[%emt 0:00:02]} Kd4 {[%emt 0:00:01]} 56. Rf5 {[%emt 0:00:03]} Bg3 {[%emt 0:00:03]} 57. Rf3 {[%emt 0:00:01]} Bc7 {[%emt 0:00:06]} 58. h4 {[%emt 0:00:01]} Ke4 {[%emt 0:00:02]} 59. h5 {[%emt 0:00:01]} Be5 {[%emt 0:00:04]} 60. h6 {[%emt 0:00:01]} Kd5 {[%emt 0:00:05]} 61. h7 {[%emt 0:00:01]} Bg7 {[%emt 0:00:02]} 62. Rf7 {[%emt 0:00:04]} Bh8 {[%emt 0:00:02]} 63. Rf8 {[%emt 0:00:00]} Bg7 {[%emt 0:00:01]} 64. h8=Q {[%emt 0:00:04]} Bxf8 1-0

[Event "3rd FIDE WCCC Rapid G10 2019"]
[Site "Minsk"]
[Date "2019.08.17"]
[Round "7.2"]
[White "Mizerova, Yana"]
[Black "Fedorova, Olesya"]
[Result "0-1"]
[ECO "E73"]
[WhiteElo "1336"]
[BlackElo "1578"]
[Annotator "NA"]
[PlyCount "62"]
[EventDate "2019.08.16"]
[EventType "swiss"]
[EventCountry "BLR"]
[SourceTitle "playchess.com"]
[Source "ChessBase"]
[SourceQuality "1"]
[TimeControl "600+5"]

1. d4 {[%emt 0:00:00]} Nf6 {[%emt 0:00:00]} 2. c4 {[%emt 0:00:00]} g6 {[%emt 0:00:00]} 3. Nc3 {[%emt 0:00:00]} Bg7 {[%emt 0:00:00]} 4. e4 {[%emt 0:00:02]} d6 {[%emt 0:00:00]} 5. Be2 {[%emt 0:00:03]} O-O {[%emt 0:00:01]} 6. Bg5 {[%emt 0:00:02]} c5 {[%emt 0:00:02]} 7. d5 {[%emt 0:00:04]} e6 {[%emt 0:00:02]} 8. f3 {[%emt 0:00:27]} h6 {[%emt 0:00:04]} 9. Be3 {[%emt 0:00:05]} exd5 {[%emt 0:00:03]} 10. cxd5 {[%emt 0:00:08]} Na6 {[%emt 0:00:19]} 11. Qd2 {[%emt 0:00:14]} Nc7 {[%emt 0:00:09]} 12. h4 {[%emt 0:00:47]} Kh7 {[%emt 0:00:21]} 13. g4 {[%emt 0:00:30]} Nd7 {[%emt 0:00:24]} 14. h5 {[%emt 0:00:49]} g5 {[%emt 0:00:19]} 15. Bd3 {[%emt 0:00:18]} Ne5 {[%emt 0:00:14]} 16. Be2 {[%emt 0:00:24]} f6 {[%emt 0:00:30]} 17. Nh3 {[%emt 0:00:10]} b5 {[%emt 0:00:09]} 18. Nf2 {[%emt 0:00:38]} b4 {[%emt 0:00:19]} 19. Ncd1 {[%emt 0:00:28]} Ba6 {[%emt 0:00:41]} 20. f4 {[%emt 0:01:30]} Nc4 {[%emt 0:00:29]} 21. Bxc4 {[%emt 0:00:37]} Bxc4 {[%emt 0:00:02]} 22. f5 {[%emt 0:00:36]} Na6 {[%emt 0:01:23]} 23. b3 {[%emt 0:00:33]} Bb5 {[%emt 0:00:06]} 24. Nb2 {[%emt 0:00:05]} Nb8 {[%emt 0:00:24]} 25. Nc4 {[%emt 0:00:30]} Nd7 {[%emt 0:00:47]} 26. Nxd6 {[%emt 0:00:35]} Ne5 {[%emt 0:00:05]} 27. Qc1 {[%emt 0:00:45]} Qxd6 {[%emt 0:00:26]} 28. Bxc5 {[%emt 0:00:12]} Nf3+ {[%emt 0:00:29]} 29. Kd1 {[%emt 0:00:02]} Qe5 {[%emt 0:00:48]} 30. Rh3 {[%emt 0:01:10]} Ng1 {[%emt 0:00:16]} 31. Rh1 {[%emt 0:00:21]} Ne2 {[%emt 0:00:16]} 0-1

[Event "3rd FIDE WCCC Rapid G10 2019"]
[Site "Minsk"]
[Date "2019.08.17"]
[Round "7.3"]
[White "Tsareva, Darya"]
[Black "Toroptseva, Yevheniia"]
[Result "0-1"]
[ECO "B12"]
[WhiteElo "1177"]
[BlackElo "1496"]
[Annotator "NA"]
[PlyCount "66"]
[EventDate "2019.08.16"]
[EventType "swiss"]
[EventCountry "BLR"]
[SourceTitle "playchess.com"]
[Source "ChessBase"]
[SourceQuality "1"]
[TimeControl "600+5"]

1. e4 {[%emt 0:00:00]} c6 {[%emt 0:00:02]} 2. d4 {[%emt 0:00:00]} d5 {[%emt 0:00:01]} 3. e5 {[%emt 0:00:00]} Bf5 {[%emt 0:00:01]} 4. Nf3 {[%emt 0:00:02]} e6 {[%emt 0:00:09]} 5. Be2 {[%emt 0:00:03]} c5 {[%emt 0:00:03]} 6. c3 {[%emt 0:00:01]} Nc6 {[%emt 0:00:02]} 7. O-O {[%emt 0:00:04]} Rc8 {[%emt 0:00:53]} 8. Re1 {[%emt 0:00:37]} Qb6 {[%emt 0:00:57]} 9. Bd3 {[%emt 0:01:13]} Bxd3 {[%emt 0:00:40]} 10. Qxd3 {[%emt 0:00:05]} cxd4 {[%emt 0:00:06]} 11. Nxd4 {[%emt 0:00:28]} Bc5 {[%emt 0:00:06]} 12. b3 {[%emt 0:01:37]} Bxd4 {[%emt 0:01:55]} 13. cxd4 {[%emt 0:00:06]} Nb4 {[%emt 0:00:23]} 14. Qg3 {[%emt 0:00:36]} Qxd4 {[%emt 0:02:36]} 15. Qxg7 {[%emt 0:00:07]} Nd3 {[%emt 0:00:08]} 16. Be3 {[%emt 0:01:03]} Qxa1 {[%emt 0:01:06]} 17. Qxh8 {[%emt 0:00:57]} Kd7 {[%emt 0:00:02]} 18. Rf1 {[%emt 0:00:42]} Nxe5 {[%emt 0:00:33]} 19. f4 {[%emt 0:00:33]} Nf3+ {[%emt 0:00:07]} 20. Rxf3 {[%emt 0:00:10]} Qxh8 {[%emt 0:00:03]} 21. Rf1 {[%emt 0:00:04]} d4 {[%emt 0:00:05]} 22. Bf2 {[%emt 0:00:04]} Rc2 {[%emt 0:00:05]} 23. Rd1 {[%emt 0:00:04]} Qg7 {[%emt 0:00:27]} 24. g3 {[%emt 0:00:16]} Qh6 {[%emt 0:00:21]} 25. Na3 {[%emt 0:00:46]} Rxf2 {[%emt 0:00:18]} 26. Rxd4+ {[%emt 0:00:12]} Ke7 {[%emt 0:00:07]} 27. Kxf2 {[%emt 0:00:03]} Qxh2+ {[%emt 0:00:02]} 28. Kf3 {[%emt 0:00:04]} Qxa2 {[%emt 0:00:07]} 29. Nc4 {[%emt 0:00:07]} Qxb3+ {[%emt 0:00:05]} 30. Ne3 {[%emt 0:00:01]} Nf6 {[%emt 0:00:06]} 31. f5 {[%emt 0:00:11]} Nd5 {[%emt 0:00:04]} 32. Re4 {[%emt 0:00:13]} Nxe3 {[%emt 0:00:13]} 33. Rxe3 {[%emt 0:00:02]} Qd5+ {[%emt 0:00:02]} 0-1

[Event "3rd FIDE WCCC Rapid G10 2019"]
[Site "Minsk"]
[Date "2019.08.17"]
[Round "7.4"]
[White "Shukhman, Anna"]
[Black "Mutina, Sofia"]
[Result "1-0"]
[ECO "C11"]
[WhiteElo "1806"]
[BlackElo "1421"]
[Annotator "NA"]
[PlyCount "85"]
[EventDate "2019.08.16"]
[EventType "swiss"]
[EventCountry "BLR"]
[SourceTitle "playchess.com"]
[Source "ChessBase"]
[SourceQuality "1"]
[TimeControl "600+5"]

1. e4 {[%emt 0:00:00]} e6 {[%emt 0:00:00]} 2. Nf3 d5 3. Nc3 {[%emt 0:00:04]} Nf6 {[%emt 0:00:00]} 4. e5 {[%emt 0:00:01]} Nfd7 {[%emt 0:00:00]} 5. d4 {[%emt 0:00:01]} c5 {[%emt 0:00:00]} 6. dxc5 {[%emt 0:00:02]} Nc6 {[%emt 0:00:06]} 7. Bf4 {[%emt 0:00:03]} Bxc5 {[%emt 0:00:01]} 8. Bd3 {[%emt 0:00:02]} h6 {[%emt 0:00:31]} 9. O-O {[%emt 0:00:12]} O-O {[%emt 0:00:02]} 10. Re1 {[%emt 0:00:09]} a6 {[%emt 0:00:16]} 11. Qd2 {[%emt 0:00:03]} b5 {[%emt 0:00:28]} 12. Bxh6 {[%emt 0:02:08]} Re8 {[%emt 0:02:19]} 13. Bf4 {[%emt 0:00:39]} Nf8 {[%emt 0:01:03]} 14. Qe2 {[%emt 0:01:11]} Be7 {[%emt 0:00:31]} 15. a3 {[%emt 0:00:43]} b4 {[%emt 0:00:14]} 16. axb4 {[%emt 0:00:09]} Nxb4 {[%emt 0:00:13]} 17. Nd4 {[%emt 0:00:24]} Nxd3 18. Qxd3 {[%emt 0:00:08]} Bb7 {[%emt 0:00:12]} 19. Re3 {[%emt 0:01:16]} Bg5 {[%emt 0:00:22]} 20. Bxg5 {[%emt 0:00:11]} Qxg5 {[%emt 0:00:03]} 21. Rae1 {[%emt 0:00:48]} Ng6 {[%emt 0:00:39]} 22. Rg3 {[%emt 0:00:12]} Qf4 {[%emt 0:01:04]} 23. Rf3 {[%emt 0:00:34]} Qg5 {[%emt 0:00:03]} 24. Rg3 {[%emt 0:00:47]} Qf4 {[%emt 0:00:03]} 25. Nf3 {[%emt 0:00:11]} Bc6 {[%emt 0:01:29]} 26. Qd4 {[%emt 0:00:39]} Qf5 {[%emt 0:00:14]} 27. Re2 {[%emt 0:00:42]} Nf4 {[%emt 0:00:11]} 28. Rd2 {[%emt 0:00:02]} Bb5 {[%emt 0:00:31]} 29. Nxb5 {[%emt 0:00:17]} axb5 {[%emt 0:00:01]} 30. h3 {[%emt 0:00:02]} Ra4 {[%emt 0:00:33]} 31. Qc3 {[%emt 0:00:15]} Qe4 {[%emt 0:00:19]} 32. Kh2 {[%emt 0:00:05]} Rea8 {[%emt 0:00:17]} 33. Rg4 {[%emt 0:00:11]} Qf5 {[%emt 0:00:36]} 34. Rg5 {[%emt 0:00:20]} Qe4 35. Nd4 {[%emt 0:00:03]} Rc4 {[%emt 0:00:13]} 36. Qg3 {[%emt 0:00:04]} Ng6 {[%emt 0:00:03]} 37. c3 {[%emt 0:00:05]} Ra2 {[%emt 0:00:03]} 38. f4 {[%emt 0:00:18]} Qxf4 {[%emt 0:00:04]} 39. Rxg6 {[%emt 0:00:03]} Qxd2 {[%emt 0:00:03]} 40. Rxg7+ {[%emt 0:00:01]} Kf8 {[%emt 0:00:00]} 41. Rg8+ {[%emt 0:00:03]} Ke7 {[%emt 0:00:01]} 42. Qh4+ {[%emt 0:00:02]} Kd7 {[%emt 0:00:02]} 43. Qd8# {[%emt 0:00:03]} 1-0